Cogmind - Beta 10.2 @@@ ROGUE MODE // 2022.01.09 @ 15:23:30 Player: tionichm Result: Destroyed by G-34 Mercenary with Small Laser Performance ------------- Evolutions (0) 0 Regions Visited (1) 200 Robots Destroyed (15) 75 Value Destroyed (369) 369 Prototype IDs (0) 0 Alien Tech Used (0) 0 Bonus (0) 0 TOTAL SCORE: 644 Bonus ------- None Cogmind --------- Core Integrity 0/250 Matter 210/300 Energy 250/250 System Corruption 1% Temperature Cool (26) Movement Rolling (90) Location -10/Materials Parts ------- > --- POWER (1) -------- Ion Engine > --- PROPULSION (2) --- Armored Wheel Armored Wheel > --- UTILITY (2) ------ Medium Storage Unit ECM Suite > --- WEAPON (2) ------- Autogun Autogun > --- INVENTORY (8) ---- Light Ion Engine Armored Wheel Armored Wheel Medium Battery (200) Medium Matter Pod (100) Targeting Computer Assault Rifle Mining Laser Peak State ------------ > --- POWER ------------ Ion Engine > --- PROPULSION ------- Armored Wheel Armored Wheel > --- UTILITY ---------- Medium Storage Unit ECM Suite > --- WEAPON ----------- Autogun Autogun > --- INVENTORY -------- Light Ion Engine Armored Wheel Armored Wheel Medium Battery Medium Matter Pod Targeting Computer Assault Rifle Mining Laser [Rating: 12] Favorites ----------- Power Ion Engine Engine Ion Engine Propulsion Compact Wheel Leg Aluminum Leg Wheel Compact Wheel Utility ECM Suite Device ECM Suite Storage Small Storage Unit Weapon Assault Rifle Energy Gun Small Laser Ballistic Gun Assault Rifle Build | -11 -10 ------- Run | Scr Mat Slots Evolved . | . . Power . | . . Propulsion . | . . Utility . | . . Weapon . | . . Parts Attached 23 | 8 15 Power 3 | 1 2 Engine 3 | 1 2 Core . | . . Reactor . | . . Propulsion 9 | 4 5 Treads . | . . Leg 2 | 2 . Wheel 7 | 2 5 Hover . | . . Flight . | . . Utility 3 | 1 2 Device 1 | . 1 Storage 2 | 1 1 Processor . | . . Hackware . | . . Protection . | . . Artifact . | . . Weapon 8 | 2 6 Energy Gun 3 | 1 2 Energy Cannon . | . . Ballistic Gun 5 | 1 4 Ballistic Cannon . | . . Launcher . | . . Special Weapon . | . . Impact Weapon . | . . Slashing Weapon . | . . Piercing Weapon . | . . Special Melee Weapon . | . . Unidentified Prototypes . | . . Parts Lost 3 | . 3 Power 1 | . 1 Propulsion . | . . Utility . | . . Weapon 2 | . 2 Highest Loss Streak 2 | . 2 Average Slot Usage (%) 95 | . 95 Engine 13 | . 13 Leg 12 | . 12 Wheel 14 | . 14 Device 13 | . 13 Storage 14 | . 14 Energy Gun 7 | . 7 Ballistic Gun 17 | . 17 Naked Turns . | . . Heaviest Build 20 | 9 20 Greatest Support 32 | 32 32 Greatest Overweight (x) 2 | . 2 Average Overweight (x) . | . . Largest Inventory Capacity 8 | 6 8 Average Capacity 6 | 5 6 Most Carried 8 | 4 8 Average Carried 3 | 2 4 Final Capacity 8 | 6 8 Final Carried 8 | 3 8 Class Distribution -------------------- 100% | Mutant Dominant Class ---------------- Mutant | -10/Materials Resources | -11 -10 ----------- Run | Scr Mat Matter Collected 610 | 225 385 Remotely . | . . Salvage Created 530 | . 530 Parts 32 | . 32 Haulers Intercepted . | . . Recyclers Shooed 1 | . 1 Parts Field Recycled . | . . Retrieved Matter . | . . Parts Self-Destructed . | . . Prevented . | . . Kills | -11 -10 ------- Run | Scr Mat Combat Hostiles Destroyed 11 | . 11 Guns 11 | . 11 Classes Destroyed 5 | . 5 Recycler 1 | . 1 Operator 1 | . 1 Watcher 2 | . 2 Swarmer 3 | . 3 Grunt 8 | . 8 Best Kill Streak 3 | . 3 Combat Bots Only 3 | . 3 Max Kills in Single Turn 2 | . 2 Gunslinging 1 | . 1 Exploded . | . . Melee . | . . Uniques/NPCs Destroyed . | . . Combat | -11 -10 -------- Run | Scr Mat Damage Taken 825 | . 825 Core 255 | . 255 Absorbed by Shields . | . . Core Remaining (%) 100 | 100 . Volleys Fired 62 | . 62 Largest 2 | . 2 Hottest 70 | . 70 Shots Fired 112 | . 112 Gun 112 | . 112 Cannon . | . . Launcher . | . . Special . | . . Kinetic 71 | . 71 Thermal 41 | . 41 Explosive . | . . Electromagnetic . | . . Robot Hit Streak 10 | . 10 Robot Miss Streak 5 | . 5 Penetration Max . | . . Secondary Targets 3 | . 3 Max Gunslinging Chain 1 | . 1 Shots Hit Robots 70 | . 70 Core Hits 28 | . 28 Critical Hits 1 | . 1 Critical Kills 1 | . 1 Critical Parts Destroyed . | . . Melee Attacks . | . . Impact . | . . Slashing . | . . Piercing . | . . Sneak Attacks . | . . Combat Hostiles . | . . Follow-up Attacks . | . . Damage Inflicted 739 | . 739 Guns 738 | . 738 Cannons . | . . Explosions . | . . Melee . | . . Ramming 1 | . 1 Kinetic 420 | . 420 Thermal 318 | . 318 Explosive . | . . Electromagnetic . | . . Impact . | . . Slashing . | . . Piercing . | . . Highest Corruption 1 | . 1 Average Corruption 1 | . 1 Corruption Purged . | . . Effects 2 | . 2 Message Errors 1 | . 1 Targeting Errors 1 | . 1 Overload Shots . | . . Overflow Damage . | . . Projectiles . | . . Explosions . | . . Melee . | . . Knockbacks . | . . Impact . | . . Kinetic . | . . Secondary . | . . Self-Inflicted Damage . | . . Shots . | . . Rammed . | . . Targets Rammed 1 | . 1 Kicked 1 | . 1 Crushed . | . . Highest Temperature 155 | . 155 Average Temperature 58 | . 58 Received Heat Transfer 357 | . 357 Siege Activations . | . . Robots Corrupted . | . . Combat Hostiles . | . . Parts Fried . | . . Impact Corruptions . | . . Robots Melted . | . . Combat Hostiles . | . . Parts Melted 1 | . 1 Heat Transferred 784 | . 784 Parts Sabotaged . | . . Parts Stolen . | . . Parts Stripped . | . . Power Chain Reactions . | . . Missiles Intercepted . | . . Alert | -11 -10 ------- Run | Scr Mat Peak Influence 237 | . 237 Initial . | . . Average 102 | . 111 Maximum Alert Level 1 | . 1 Low Security (%) 98 | 100 98 Level 1 1 | . 1 Level 2 . | . . Level 3 . | . . Level 4 . | . . Level 5 . | . . High Security . | . . Max Security . | . . Squads Dispatched 4 | . 4 Investigation 3 | . 3 Extermination . | . . Reinforcement 1 | . 1 Assault . | . . Garrison . | . . Intercept . | . . Construction Impeded . | . . Haulers Reinforced . | . . Stealth | -11 -10 --------- Run | Scr Mat Distress Signals . | . . Communications Jammed . | . . Distress Signals . | . . Times Spotted 21 | . 21 Peak Tracking Total 3 | . 3 Tactical Retreats 1 | . 1 Traps | -11 -10 ------- Run | Scr Mat Traps Triggered 4 | . 4 Indirectly . | . . Trap Hack Attempts . | . . Triggered . | . . Disarmed . | . . Reprogrammed . | . . Reused . | . . Traps Extracted . | . . Installed . | . . Triggered . | . . Machines | -11 -10 ---------- Run | Scr Mat Machines Disabled . | . . Max in Single Turn . | . . Machines Sabotaged . | . . Garrisons Compromised . | . . Overloaded Fab Kills . | . . Fab Network Shutdowns . | . . Hacking | -11 -10 --------- Run | Scr Mat Machines Accessed 5 | . 5 Terminals 4 | . 4 Fabricators . | . . Repair Stations . | . . Recycling Units 1 | . 1 Scanalyzers . | . . Garrison Access . | . . Total Hacks 16 | . 16 Successful 7 | . 7 Failed 9 | . 9 Catastrophic 1 | . 1 Database Lockouts . | . . Manual . | . . Terminals 15 | . 15 Fabricators . | . . Repair Stations . | . . Recycling Units 1 | . 1 Scanalyzers . | . . Garrison Access . | . . Terminal Hacks 7 | . 7 Record 6 | . 6 Registered Components 1 | . 1 Fabricator Hacks . | . . Repair Station Hacks . | . . Recycling Unit Hacks . | . . Scanalyzer . | . . Garrison Access Hacks . | . . Unauthorized Hacks . | . . Terminals . | . . Fabricators . | . . Repair Stations . | . . Recycling Units . | . . Scanalyzers . | . . Garrison Access . | . . Data Cores Recovered 1 | . 1 Used . | . . Hacking Detections 5 | . 5 Full Trace Events 1 | . 1 Feedback Events . | . . Feedback Blocked . | . . Robot Schematics Acquired . | . . Robots Built . | . . Matter . | . . Time . | . . Total Robot Build Rating . | . . Part Schematics Acquired . | . . Parts Built . | . . Matter . | . . Time . | . . Total Part Build Rating . | . . Parts Repaired . | . . Time . | . . Parts Recycled . | . . Recycled Matter . | . . Retrieved Matter . | . . Retrieved Components . | . . Parts Scanalyzed . | . . Part Schematics Acquired . | . . Parts Damaged . | . . Bothacking | -11 -10 ------------ Run | Scr Mat Used RIF Installer . | . . Robots Hacked . | . . Non-combat . | . . Combat . | . . Robot Hacks Applied . | . . Relay Couplers Released . | . . Robots Rewired . | . . Allies Hacked . | . . Hacks Repelled . | . . Allies | -11 -10 -------- Run | Scr Mat Total Allies . | . . Largest Group . | . . Highest-Rated Group . | . . Highest-Rated Ally . | . . Total Orders . | . . Ally Attacks . | . . Total Damage . | . . Kills . | . . Allies Corrupted . | . . Allies Melted . | . . Intel | -11 -10 ------- Run | Scr Mat Robot Analysis Total . | . . Derelict Logs Recovered . | . . Drone Launches . | . . Drone Recoveries . | . . Exploration | -11 -10 ------------- Run | Scr Mat Turns Passed 779 | 63 716 Spaces Moved 481 | 46 435 Core 9 | 8 1 Treads . | . . Legs 187 | 19 168 Wheels 285 | 19 266 Hover . | . . Flight . | . . Fastest Speed 50 | 50 90 Average Speed 106 | 99 107 Slowest Speed 150 | 120 150 Overloaded Moves . | . . Propulsion Burnouts . | . . Robots Hopped . | . . Cave-ins Triggered . | . . Exploration Rate (%) 30 | 3 58 Regions Visited 1 Branch Regions . Pre-discovered Areas . | . . Known Exits Taken . | . . Unknown Exits Taken 1 | 1 . Scrap Searched . | . . Spaces Dug . | . . Terrain Destroyed . | . . Melee . | . . Projectile . | . . AOE . | . . Terrain Rammed . | . . Walls Destroyed . | . . Machines Disabled . | . . Actions | -11 -10 --------- Run | Scr Mat Total 648 | 64 584 Wait 28 | . 28 Move 480 | 45 435 Hop . | . . Pick Up 32 | 9 23 Fast Attach . | . . Attach 22 | 8 14 Detach 6 | 2 4 Swap 1 | . 1 Drop 14 | . 14 Fire 62 | . 62 Melee . | . . Ram . | . . Kick 1 | . 1 Crush . | . . Escape Stasis . | . . Rewire 2 | . 2 Trap . | . . Miscellaneous . | . . Route ------- -11/Scrapyard -10/Materials (discovered 4 exits: [*Mat x2] / [*Min x2]) History --------- Turn | Location | Event 24 | -11/Scrapyard | Discovered new exit (range 15) 64 | -11/Scrapyard | Entered Materials 93 | -10/Materials | Discovered new exit (range 16) 311 | -10/Materials | Build established: Mutant 363 | -10/Materials | Discovered new exit (range 7) 372 | -10/Materials | Core integrity fell below 50% 603 | -10/Materials | Discovered new exit (range 5) 687 | -10/Materials | Core integrity fell below 20% 720 | -10/Materials | Discovered new exit (range 15) 780 | -10/Materials | Destroyed by G-34 Mercenary with Small Laser Last Messages --------------- U-05 Engineer lays Concrete. U-05 Engineer builds a Wall. U-05 Engineer lays Concrete. EXIT=FOUND Acquired Arm. Wheel. Dropped Com. Wheel. Dropped Arm. Wheel. Acquired Com. Wheel. Acquired Autogun. Dropped Assault Rifle. Dropped Autogun. Acquired Autogun. Dropped Com. Wheel. Acquired Arm. Wheel. Dropped Sml. Storage Unit. Acquired Arm. Wheel. Triggered Alarm Trap. An alarm sounds. ALERT: Alarm triggered, dispatching investigation squad. G-34 Mercenary destroyed. Map ----- +----------------------------------------------------+ | ???# # """ # | | ???# # # ###### | | ???# ########## #????# | | ???# #????????# #????# | | ???# ##???????# #????# | | ???# ##???????# #????###+## | | ???# #???????# #???????^?? | | ???# "#??????## ##????????? | | ???# ##??????# #????????? | | ???# #???????# #????????? | | ???# ####????# T #?????^??? | | ???# !!##???# #???^????^ | | ???# #???# #????????? | | ???# !#???#######????????? | | ???# !#??????????????????? | | ???# !#??????????????????? | | ???# !!##??????????????????? | | ???# ####??????????????????## | | ???# #?????????????????????# | | ???# #?????????????????????# | | ???# #?????????????????????# | | ???# #?????????????????????# | | ???# #####?????????????????# | | ???# = #?????????????????# | | ???# !#?????????????????## | | ???# @ [!!#??????????????????? | | ???# [!!#??????????######### | | ???# [#??????????# | | ???# = #??????????# """ | | ???# #####??????????# T" | | ???# #??????????????# """% | | ???# #??????????????# | | ???# #??????????????# """ | | ???# #??????????????# """ | | ???# #??????????????# """ | | ???# *=+??????????????# | | ???#gg%?????????????########### | | ???# <=?????????????# # | | ???# ?????????????# """ # | | ???####?????????????# """ + | | ????????????????????# """ # | | ????????????????????# """ # | | ????????????????????# [ Y" # | | ????????????????????# """ # | | ????????????????????# # | | ????????????????????########### | | ??????????????????????????????? | | ??????????????????????????????? | | ??????????????????????????????? | | ??????????????????????????????? | +----------------------------------------------------+ Best States ------------- Heat Dissipation 25 Energy Generation 10 Energy Capacity 250 Matter Stores 300 Matter Capacity 300 Sight Range 16 Terrain Scan Density 10 ECM Strength 1 Evasion (%) 42 Item Schematics ----------------- None Robot Schematics ------------------ None Fabricated ------------ Nothing Alien Tech Used ----------------- None Achievements -------------- None Challenges ------------ None Game ------ Seed GravitonEnhancedCannon Manual? 0 Play Time 00:16:22 Cumulative 9.2 hours Start 2021.12.21 @ 10:04:21 End 2022.01.09 @ 15:23:30 Sessions 1 Manual Loads 0 Difficulty Rogue Special Mode None Game No. 24 Rogue 24 Adventurer 0 Explorer 0 Win Type - Total 0 Types 0/0/0/0/0/0/0/0/0 Lore% 8 Gallery% 15 Achievement% 13 Wizard Run 0 Options --------- ASCII 0 Keyboard 0 Movement Numpad Keybinds 0 Fullscreen 1 Font 36/Smallcaps Map View 76x50 Tactical HUD 0 Map Filters NONE Filters NONE Steam 1 RUN: aa22ea02-3674-4a8f-9f95-23f5fa2de5da